fUST/lending_fUST_20240610
["ID","MTS","AMOUNT","RATE_DAILY","PERIOD"]
[328895153,1717967440392,-500.0,0.00021999,2]
[328895154,1717967440403,-500.0,0.00021999,2]
[328895155,1717967440414,-500.0,0.00021999,2]
[328895156,1717967440424,-500.0,0.00021999,2]
[328895157,1717967440434,-447.78810283,0.00021999,2]
[328895158,1717967440445,-500.0,0.00021999,2]
[328895159,1717967440455,-169.0128192,0.00021999,2]
[328895160,1717967440465,-500.0,0.00021999,2]
[328895161,1717967440476,-31887.56672282,0.00022,2]
[328895162,1717967440486,-277.35190772,0.00022,2]
[328895163,1717967440496,-500.0,0.00022191,3]
[328895164,1717967440507,-642.97,0.00022191,3]
[328895165,1717967440519,-500.0,0.00022191,3]
[328895166,1717967440529,-500.0,0.00022191,3]
[328895167,1717967440540,-500.0,0.00022191,3]
[328895168,1717967440550,-500.0,0.00022191,3]
[328895169,1717967440560,-500.0,0.00022191,3]
[328895170,1717967440571,-500.0,0.00022191,3]
[328895171,1717967440582,-500.0,0.00022191,3]
[328895172,1717967440594,-500.0,0.00022191,3]
[328895173,1717967440604,-500.0,0.00022191,3]
[328895174,1717967440613,-500.0,0.00022191,3]
[328895175,1717967440624,-500.0,0.00022191,3]
[328895176,1717967440634,-558.44,0.00022191,3]
[328895177,1717967440644,-166.666666,0.00022431,2]
[328895178,1717967440655,-500.0,0.00022465,3]
[328895179,1717967440665,-642.97,0.00022465,3]
[328895180,1717967440674,-150.02,0.00022465,3]
[328895181,1717967440684,-500.0,0.00022465,3]
[328895182,1717967440694,-500.0,0.00022465,3]
[328895183,1717967440704,-500.0,0.00022465,3]
[328895184,1717967440714,-309.92,0.00022465,3]
[328895185,1717967440725,-500.0,0.00022465,3]
[328895186,1717967440735,-500.0,0.00022465,3]
[328895187,1717967440745,-500.0,0.00022465,3]
[328895188,1717967440756,-500.0,0.00022465,3]
[328895189,1717967440766,-500.0,0.00022465,3]
[328895190,1717967440777,-497.18,0.00022465,3]
[328895191,1717967440787,-500.0,0.00022739,3]
[328895192,1717967440798,-642.97,0.00022739,3]
[328895193,1717967440812,-509.83,0.00022739,3]
[328895194,1717967440822,-500.0,0.00022739,3]
[328895195,1717967440832,-508.87,0.00022739,3]
[328895196,1717967440844,-271.84423605,0.00022739,3]
[328895197,1717967440855,-500.0,0.00022739,3]
[328895198,1717967440866,-500.0,0.00022739,3]
[328895199,1717967440876,-204.27,0.00022739,3]
[328895200,1717967440887,-500.0,0.00022739,3]
[328895201,1717967440897,-497.56756101,0.00022773,2]
[328895202,1717967440908,-151.0,0.00022832,7]
[328895203,1717967440918,-166.666666,0.00022944,2]
[328895204,1717967440929,-240.2397568,0.00023,2]
[328895205,1717967440940,-207.11489985,0.00023,2]
[328895206,1717967440950,-155.01395126,0.00023,2]
[328895207,1717967440960,-155.01395126,0.00023,2]
[328895208,1717967440970,-500.0,0.00023013,3]
[328895209,1717967440980,-642.97,0.00023013,3]
[328895210,1717967440990,-500.0,0.00023013,3]
[328895211,1717967441000,-500.0,0.00023013,3]
[328895212,1717967441010,-500.0,0.00023013,3]
[328895213,1717967441020,-500.0,0.00023013,3]
[328895214,1717967441030,-356.58265559,0.0002316,2]
[328895215,1717967441040,-500.0,0.00023287,3]
[328895216,1717967441051,-642.97,0.00023287,3]
[328895217,1717967441060,-500.0,0.00023287,3]
[328895218,1717967441070,-500.0,0.00023287,3]
[328895219,1717967441080,-470.0,0.00023287,3]
[328895220,1717967441092,-500.0,0.00023287,3]
[328895221,1717967441102,-166.666666,0.00023456,2]
[328895222,1717967441112,-500.0,0.00023561,3]
[328895223,1717967441123,-642.97,0.00023561,3]
[328895224,1717967441133,-581.74,0.00023561,3]
[328895225,1717967441143,-500.0,0.00023561,3]
[328895226,1717967441153,-241.32,0.00023561,3]
[328895227,1717967441163,-151.0,0.00023684,7]
[328895228,1717967441173,-500.0,0.00023835,3]
[328895229,1717967441183,-642.97,0.00023835,3]
[328895230,1717967441193,-500.0,0.00023835,3]
[328895231,1717967441203,-1136.99410213,0.000239,2]
[328895232,1717967441213,-166.666666,0.00023969,2]
[328895233,1717967441223,-285.0,0.00024,2]
[328895234,1717967441233,-500.0,0.00024109,3]
[328895235,1717967441243,-642.97,0.00024109,3]
[328895236,1717967441253,-500.0,0.00024109,3]
[328895237,1717967441262,-151.01208097,0.00024226,7]
[328895238,1717967441273,-500.0,0.00024383,3]
[328895239,1717967441283,-642.97,0.00024383,3]
[328895240,1717967441293,-500.0,0.00024383,3]
[328895241,1717967441304,-166.666666,0.00024482,2]
[328895242,1717967441313,-151.0,0.00024537,7]
[328895243,1717967441323,-2061.52868784,0.00024607,2]
[328895244,1717967441332,-2061.52868784,0.00024616,2]
[328895245,1717967441345,-154.51667222,0.00024644,2]
[328895246,1717967441356,-500.0,0.00024657,3]
[328895247,1717967441366,-642.97,0.00024657,3]
[328895248,1717967441375,-411.28,0.00024657,3]
[328895249,1717967441386,-380.0,0.00024658,2]
[328895250,1717967441395,-500.0,0.00024658,2]
[328895251,1717967441407,-500.0,0.00024658,2]
[328895252,1717967441416,-500.0,0.00024658,2]
[328895253,1717967441427,-237.5183405,0.00024658,2]
[328895254,1717967441438,-545.58549167,0.00024658,2]
[328895255,1717967441448,-497.56756101,0.00024678,2]
[328895256,1717967441458,-274.58574551,0.00024686,2]
[328895257,1717967441468,-994.51678818,0.00024692,2]
[328895258,1717967441478,-151.01208097,0.00024721,4]
[328895259,1717967441488,-151.13739229,0.00024758,2]
[328895260,1717967441498,-994.51678818,0.00024774,2]
[328895261,1717967441508,-994.51678818,0.00024792,2]
[328895262,1717967441518,-274.58574551,0.00024822,2]
[328895263,1717967441529,-994.51678818,0.00024896,2]
[328895264,1717967441538,-154.51667222,0.00024904,2]
[328895265,1717967441548,-500.0,0.00024931,3]
[328895266,1717967441557,-642.97,0.00024931,3]
[328895267,1717967441567,-274.58574551,0.00024958,2]
[328895268,1717967441577,-274.58574551,0.00024972,2]
[328895269,1717967441589,-809.09371129,0.00025,2]
[328895270,1717967441599,-309.9380155,0.00025,2]
[328895271,1717967441609,-962.66926315,0.00025,2]
[328895272,1717967441620,-326.6,0.00025,2]
[328895273,1717967441629,-300.0,0.00025,2]
[328895274,1717967441639,-300.0,0.00025,2]
[328895275,1717967441650,-300.0,0.00025,2]
[328895276,1717967441660,-428.2,0.00025,2]
[328895277,1717967441670,-925.9679448,0.00025,2]
[328895278,1717967441680,-994.51678818,0.00025016,2]
[328895279,1717967441690,-151.13739229,0.00025058,2]
[328895280,1717967441700,-274.58574551,0.00025098,2]
[328895281,1717967441710,-274.58574551,0.00025107,2]
[328895282,1717967441720,-154.51667222,0.00025122,2]
[328895283,1717967441730,-274.58574551,0.0002513,2]
[328895284,1717967441740,-154.51667222,0.00025149,2]
[328895285,1717967441750,-154.51667222,0.00025165,2]
[328895286,1717967441760,-994.51678818,0.00025197,2]
[328895287,1717967441770,-500.0,0.00025205,3]
[328895288,1717967441779,-642.97,0.00025205,3]
[328895289,1717967441789,-151.01208097,0.00025225,2]
[328895290,1717967441800,-2061.52868784,0.00025266,2]
[328895291,1717967441813,-274.58574551,0.00025278,2]
[328895292,1717967441823,-151.13739229,0.00025301,2]
[328895293,1717967441833,-151.0,0.00025389,7]
[328895294,1717967441844,-154.51667222,0.00025401,2]
[328895295,1717967441855,-1034.02675731,0.00025424,2]
[328895322,1717967444633,-500.0,0.00021917,3]
[328895323,1717967444643,-500.0,0.00021917,3]
[328895324,1717967444654,-500.0,0.00022191,3]
[328895325,1717967444664,-500.0,0.00022465,3]
[328895326,1717967444675,-500.0,0.00022739,3]
[328895327,1717967444685,-500.0,0.00023013,3]
[328895328,1717967444695,-500.0,0.00023287,3]
[328895329,1717967444706,-500.0,0.00023561,3]
[328895330,1717967444716,-500.0,0.00023835,3]
[328895331,1717967444726,-500.0,0.00024109,3]
[328895332,1717967444735,-440.12,0.00024383,3]
[328895333,1717967444747,-1027.50193053,0.00025424,2]
[328895334,1717967444758,-2061.52868784,0.0002547,2]
[328895335,1717967444768,-500.0,0.00025479,3]
[328895336,1717967444780,-642.97,0.00025479,3]
[328895337,1717967444789,-2061.52868784,0.0002556,2]
[328895338,1717967444799,-994.51678818,0.00025593,2]
[328895339,1717967444812,-994.51678818,0.00025602,2]
[328895340,1717967444822,-994.51678818,0.00025627,2]
[328895341,1717967444832,-151.13739229,0.00025658,2]
[328895342,1717967444842,-2061.52868784,0.00025681,2]
[328895343,1717967444854,-151.13739229,0.00025684,2]
[328895344,1717967444864,-994.51678818,0.00025698,2]
[328895345,1717967444874,-2061.52868784,0.000257,2]
[328895346,1717967444885,-300.0,0.000257,2]
[328895347,1717967444895,-300.0,0.000257,2]
[328895348,1717967444907,-2061.52868784,0.00025714,2]
[328895349,1717967444918,-151.13739229,0.00025724,2]
[328895350,1717967444928,-2061.52868784,0.00025744,2]
[328895351,1717967444938,-500.0,0.00025753,3]
[328895352,1717967444948,-642.97,0.00025753,3]
[328895353,1717967444957,-151.13739229,0.00025835,2]
[328895354,1717967444966,-151.13739229,0.00025856,2]
[328895355,1717967444976,-274.58574551,0.00025868,2]
[328895356,1717967444986,-274.58574551,0.00025904,2]
[328895357,1717967444996,-151.13739229,0.00025911,2]
[328895358,1717967445006,-994.51678818,0.00025953,2]
[328895359,1717967445016,-274.58574551,0.00026003,2]
[328895360,1717967445026,-274.58574551,0.00026023,2]
[328895361,1717967445035,-181.77594127,0.00026027,3]
[328895362,1717967445045,-642.97,0.00026027,3]
[328895363,1717967445055,-1266.91605841,0.00026064,2]
[328895364,1717967445165,-500.0,0.00022191,3]
[328895365,1717967445176,-794.61262943,0.00026064,2]
[328895366,1717967445186,-994.51678818,0.00026066,2]
[328895367,1717967445196,-310.3700167,0.0002611,2]
[328895368,1717967445206,-205.268679,0.0002611,2]
[328895369,1717967445216,-153.0,0.0002611,2]
[328895370,1717967445226,-153.0,0.0002611,2]
[328895371,1717967445235,-153.0,0.0002611,2]
[328895372,1717967445244,-205.268679,0.0002611,2]
[328895373,1717967445254,-153.0,0.0002611,2]
[328895374,1717967445264,-153.0,0.0002611,2]
[328895375,1717967445273,-153.0,0.0002611,2]
[328895376,1717967445283,-205.268679,0.0002611,2]
[328895377,1717967445293,-153.0,0.0002611,2]
[328895378,1717967445303,-205.268679,0.0002611,2]
[328895379,1717967445313,-205.268679,0.0002611,2]
[328895380,1717967445323,-205.268679,0.0002611,2]
[328895381,1717967445333,-205.268679,0.0002611,2]
[328895382,1717967445344,-205.268679,0.0002611,2]
[328895383,1717967445353,-274.58574551,0.00026131,2]
[328895384,1717967445363,-151.13739229,0.0002616,2]
[328895385,1717967445373,-151.0,0.00026242,7]
[328895386,1717967445383,-994.51678818,0.00026256,2]
[328895387,1717967445393,-171.67396166,0.00026293,2]
[328895388,1717967445402,-642.97,0.00026301,3]
[328895389,1717967445411,-634.025679,0.00026318,2]
[328895390,1717967445421,-620.72141794,0.00026367,2]
[328895391,1717967445431,-2061.52868784,0.00026369,2]
[328895392,1717967445440,-195.6225,0.00026388,2]
[328895393,1717967445450,-133.41769009,0.00026418,2]
[328895399,1717967447594,-155.01395126,0.0002,2]
[328895400,1717967447605,-500.0,0.00021917,3]
[328895401,1717967447615,-500.0,0.00022191,3]
[328895402,1717967447625,-500.0,0.00022465,3]
[328895403,1717967447636,-500.0,0.00022739,3]
[328895404,1717967447646,-500.0,0.00023013,3]
[328895405,1717967447658,-500.0,0.00023287,3]
[328895406,1717967447669,-500.0,0.00023561,3]
[328895407,1717967447680,-373.72,0.00023835,3]
[328895408,1717967447690,-17.7197022,0.00026418,2]
[328895409,1717967447700,-356.58265559,0.0002642,2]
[328895410,1717967447711,-994.51678818,0.00026439,2]
[328895411,1717967447721,-2061.52868784,0.00026459,2]
[328895412,1717967447734,-162.15614264,0.00026496,2]
[328895413,1717967447745,-13130.38777574,0.000265,7]
[328895414,1717967447756,-3000.0,0.000265,2]
[328895415,1717967447767,-3000.0,0.0002651,2]
[328895416,1717967447778,-3190.115934,0.0002652,2]
[328895417,1717967447789,-162.15614264,0.00026552,2]
[328895418,1717967447800,-151.78907289,0.00026552,2]
[328895419,1717967447816,-642.97,0.00026575,3]
[328895420,1717967447828,-497.56756101,0.00026584,2]
[328895421,1717967447838,-151.13739229,0.0002659,2]
[328895422,1717967447850,-151.13739229,0.00026618,2]
[328895423,1717967447860,-2061.52868784,0.00026683,2]
[328895424,1717967447871,-300.0,0.000267,2]
[328895425,1717967447882,-300.0,0.000267,2]
[328895426,1717967447892,-274.58574551,0.00026722,2]
[328895427,1717967447902,-154.51667222,0.00026793,2]
[328895428,1717967447912,-994.51678818,0.00026847,2]
[328895429,1717967447921,-6308.88503082,0.00026848,2]
[328895430,1717967447931,-642.97,0.00026849,3]
[328895431,1717967447943,-750.0,0.00026849,2]
[328895432,1717967447953,-2061.52868784,0.00026855,2]
[328895433,1717967447963,-2061.52868784,0.00026896,2]
[328895434,1717967447973,-270.0,0.000269,2]
[328895435,1717967447983,-160.0,0.000269,2]
[328895436,1717967447993,-1000.0,0.000269,2]
[328895437,1717967448004,-151.13739229,0.00026912,2]
[328895438,1717967448014,-199.98450465,0.00026913,2]
[328895439,1717967448024,-878.05184626,0.00026914,2]
[328895440,1717967448033,-1463.50804939,0.00026914,2]
[328895441,1717967448043,-432.16814441,0.00026914,2]
[328895442,1717967448052,-82704.99657636,0.00026914,7]
[328895503,1717967652295,200.39532959,9.999e-05,2]
[328895942,1717968633339,-2113.53223879,0.00014999,2]
[328895945,1717968633354,-1302.68548416,0.00015,2]
[328895947,1717968633368,-166.666666,0.00016986,2]
[328895950,1717968633381,-520.303131,0.00017876,2]
[328895952,1717968633396,-1355.02163008,0.00018,2]
[328895954,1717968633409,-938.60358095,0.00018778,2]
[328895957,1717968633424,-2000.0,0.00018779,2]
[328895959,1717968633438,-378.99803404,0.000189,2]
[328895961,1717968633452,-4743.45775893,0.00018998,2]
[328895963,1717968633465,-303.56848351,0.00018999,2]
[328895966,1717968633478,-7267.44042319,0.00019,2]
[328895968,1717968633492,-539.86203041,0.0002,2]
[328895970,1717968633506,-9500.51899678,0.0002,2]
[328895972,1717968633517,-1455.8319284,0.0002,3]
[328895975,1717968633530,-528.95396737,0.0002,4]
[328895977,1717968633543,-155.01395126,0.0002,2]
[328895979,1717968633557,-932.35426985,0.0002,2]
[328895981,1717968633571,-155.01395126,0.0002,2]
[328895984,1717968633585,-155.01395126,0.0002,2]
[328895986,1717968633598,-155.01395126,0.0002,2]
[328895988,1717968633610,-435.0,0.0002,2]
[328895991,1717968633625,-270.43326,0.00020142,2]
[328895993,1717968633637,-393.98121283,0.00021,2]
[328895995,1717968633651,-2072.96177146,0.00021,2]
[328895997,1717968633664,-471.08100537,0.00021,2]
[328895999,1717968633674,-160.04854241,0.0002144,2]
[328896001,1717968633686,-3000.0,0.000215,2]
[328896002,1717968633697,-3000.0,0.0002151,2]
[328896003,1717968633709,-3000.0,0.0002152,2]
[328896004,1717968633722,-3000.0,0.0002153,2]
[328896005,1717968633735,-3000.0,0.0002154,2]
[328896006,1717968633748,-3000.0,0.0002155,2]
[328896007,1717968633761,-3000.0,0.0002156,2]
[328896008,1717968633771,-3000.0,0.0002157,2]
[328896009,1717968633782,-3000.0,0.0002158,2]
[328896011,1717968633796,-3000.0,0.0002159,2]
[328896012,1717968633808,-3000.0,0.000216,2]
[328896015,1717968633821,-3000.0,0.0002161,2]
[328896017,1717968633833,-3000.0,0.0002162,2]
[328896019,1717968633847,-3000.0,0.0002163,2]
[328896021,1717968633859,-3000.0,0.0002164,2]
[328896023,1717968633873,-3000.0,0.0002165,2]
[328896025,1717968633884,-3000.0,0.0002166,2]
[328896027,1717968633897,-3000.0,0.0002167,2]
[328896030,1717968633909,-61.54556461,0.0002168,2]
[328896032,1717968633925,-1302.0,0.0002168,2]
[328896408,1717968638615,-580.68582922,0.0002168,2]
[328901372,1717969716504,11096.82477865,9.999e-05,2]
[328901416,1717969834108,-166.666666,0.00016986,2]
[328901417,1717969834120,-808.86642567,0.00017996,2]
[328901418,1717969834132,-46256.89137021,0.00017996,2]
[328901422,1717969840008,-203.28561506,0.00017897,2]
[328901423,1717969840020,-1193.4894828,0.00017996,2]
[328901524,1717969845671,-12124.83445454,0.00017996,2]
[328901526,1717969845682,-3824.22825534,0.00017997,7]
[328901528,1717969845692,-36867.168786,0.00017997,2]
[328901531,1717969845705,-1253.08271049,0.00017997,2]
[328901533,1717969845718,-49995.50043683,0.00017997,2]
[328901535,1717969845728,-160.25313399,0.000184,2]
[328901537,1717969845740,-260.151566,0.0001846,2]
[328901539,1717969845751,-938.60358095,0.000187,2]
[328901541,1717969845762,-252.66535603,0.000189,2]
[328901543,1717969845773,-4610.38963846,0.00019,2]
[328901545,1717969845783,-230.07181864,0.00019178,2]
[328901547,1717969845794,-316.24889374,0.00019178,2]
[328901549,1717969845804,-650.70384576,0.00019178,2]
[328901551,1717969845815,-500.0,0.00019178,2]
[328901553,1717969845825,-384.33643085,0.00019178,2]
[328901555,1717969845836,-176.06025,0.00019262,2]
[328901557,1717969845847,-203.28561506,0.00019415,2]
[328901559,1717969845857,-1253.08271049,0.00019998,2]
[328901561,1717969845868,-355.70228148,0.00019999,2]
[328901563,1717969845878,-4031.45860501,0.0002,2]
[328901566,1717969845896,-5469.06039177,0.0002,2]
[328901568,1717969845906,-528.95396737,0.0002,4]
[328901570,1717969845917,-932.35426985,0.0002,2]
[328901572,1717969845927,-203.61296107,0.0002,2]
[328901574,1717969845939,-186.15399627,0.0002,2]
[328901576,1717969845949,-278.66573513,0.0002,2]
[328901578,1717969845959,-281.26811784,0.0002,2]
[328901580,1717969845970,-435.0,0.0002,2]
[328901582,1717969845980,-155.01395126,0.0002,2]
[328901584,1717969845990,-1455.8319284,0.0002,3]
[328901586,1717969846001,-4260.08310903,0.0002,2]
[328901588,1717969846012,-393.53264959,0.000203,2]
[328901590,1717969846022,-393.98121283,0.00021,2]
[328901592,1717969846032,-379.49654147,0.00021,2]
[328901594,1717969846042,-471.08100537,0.00021,2]
[328901596,1717969846053,-198.48928422,0.00021,2]
[328901598,1717969846063,-2339.31601988,0.000215,2]
[328901601,1717969846076,-660.68398012,0.000215,2]
[328901603,1717969846086,-3000.0,0.0002151,2]
[328901605,1717969846096,-643.13669963,0.0002152,2]
[328907418,1717970247666,156.91288186,9.999e-05,2]
[328907447,1717971033363,-166.666666,0.00016986,2]
[328907448,1717971033374,-260.151566,0.00017488,2]
[328907449,1717971033384,-3000.0,0.00017767,2]
[328907450,1717971033394,-2557.9422314,0.00017958,2]
[328907451,1717971033404,-175.7845916,0.00018599,2]
[328907452,1717971033414,-46631.85760571,0.00018698,2]
[328907453,1717971033425,-3886.44573151,0.00018699,2]
[328907454,1717971033435,-938.60358095,0.000187,2]
[328907455,1717971033445,-168.44357068,0.000189,2]
[328907456,1717971033455,-167.257237,0.00019178,2]
[328907457,1717971033465,-155.61930701,0.00019996,2]
[328907458,1717971033475,-1809.04805007,0.00019996,2]
[328907459,1717971033486,-9588.50838645,0.00019998,2]
[328907460,1717971033496,-9500.51899678,0.0002,2]
[328907461,1717971033507,-932.35426985,0.0002,2]
[328907462,1717971033517,-241.59160637,0.0002,2]
[328907463,1717971033527,-1455.8319284,0.0002,3]
[328907464,1717971033537,-175.78459157,0.00020017,2]
[328907465,1717971033548,-471.08100537,0.00021,2]
[328907466,1717971033559,-393.98121283,0.00021,2]
[328907467,1717971033570,-742.52,0.0002109,3]
[328907468,1717971033580,-278.87307676,0.00021099,2]
[328907469,1717971033590,-379.00132751,0.00021099,2]
[328907470,1717971033600,-32843.44101592,0.000211,2]
[328907471,1717971033614,-27156.55898409,0.000211,2]
[328907472,1717971033624,-175.78459157,0.00021435,2]
[328907473,1717971033634,-266.48228968,0.00021477,2]
[328907474,1717971033644,-3000.0,0.000215,2]
[328907475,1717971033654,-1490.11871275,0.0002151,2]
[328907476,1717971033667,-1006.95318149,0.0002151,2]
[328907524,1717971038804,-301.47858729,0.0002151,2]
[328907525,1717971038950,-201.44951847,0.0002151,2]
[328907526,1717971038961,-3000.0,0.00021519,2]
[328907527,1717971038972,-3000.0,0.00021519,2]
[328907528,1717971038982,-3000.0,0.00021519,2]
[328907529,1717971038992,-3000.0,0.00021519,2]
[328907530,1717971039002,-3000.0,0.00021519,2]
[328907531,1717971039013,-6565.19388787,0.0002152,7]
[328907532,1717971039023,-432.16814441,0.0002152,2]
[328907533,1717971039036,-13366.39876395,0.0002152,2]
[328907577,1717971045093,-114.06553567,0.0002152,2]
[328907579,1717971045107,-4444.50654592,0.0002152,2]
[328907642,1717971179105,692.46643816,9.999e-05,2]
[328907643,1717971253613,216.30293909,9.999e-05,2]
[328907644,1717971292716,303.24901435,9.999e-05,2]
[328907721,1717972233396,-323.96450678,0.00014998,2]
[328907723,1717972233406,-190.49958795,0.000156,2]
[328907725,1717972233415,-1100.59931817,0.00016984,2]
[328907727,1717972233424,-166.666666,0.00016986,2]
[328907729,1717972233435,-531.362352,0.000177,2]
[328907731,1717972233445,-1858.5893851,0.00017702,2]
[328907733,1717972233455,-250.0,0.00017825,2]
[328907735,1717972233465,-170.793334,0.00017866,2]
[328907737,1717972233476,-938.60358095,0.000187,2]
[328907739,1717972233487,-491.29374783,0.000189,2]
[328907741,1717972233497,-195.62251,0.00019178,2]
[328907743,1717972233507,-361.95314821,0.00019878,2]
[328907745,1717972233517,-1044.46840479,0.00019952,2]
[328907747,1717972233528,-7288.05626594,0.00019952,2]
[328907749,1717972233538,-1112.45868093,0.00019953,2]
[328907751,1717972233548,-7267.44042319,0.00019954,2]
[328907753,1717972233558,-309.9070279,0.00019974,2]
[328907755,1717972233568,-261.91979643,0.00019974,2]
[328907757,1717972233578,-692.0586622,0.00019974,2]
[328907759,1717972233589,-215.9872913,0.00019974,2]
[328907761,1717972233601,-445.50826244,0.00019974,2]
[328907763,1717972233610,-309.92252015,0.00019975,2]
[328907765,1717972233620,-4238.57246775,0.00019976,2]
[328907768,1717972233636,-864.89975766,0.00019976,2]
[328907793,1717972239260,-166.93153526,0.00019878,2]
[328907795,1717972239271,-3002.85643174,0.00019976,2]
[328908179,1717972244196,-2998.4371572,0.00019976,2]
[328908181,1717972244209,-2000.0,0.00019976,2]
[328908284,1717972245354,-705.58448431,0.00019976,2]
[328908428,1717972247672,-24542.79060833,0.00019976,2]
[328908430,1717972247682,-1302.5,0.00019978,2]
[328908432,1717972247692,-1836.25355487,0.00019998,2]
[328908434,1717972247702,-7074.88885589,0.00019999,2]
[328908437,1717972247715,-742.73274109,0.00019999,2]
[328908520,1717972343872,159.04132765,9.999e-05,2]
[328908521,1717972348609,2113.53223879,9.999e-05,2]
[328908523,1717972351449,1155.8409949,9.999e-05,2]
[328908524,1717972385958,156.96482514,9.999e-05,2]
[328908525,1717972401008,659.92725719,9.999e-05,2]
[328908606,1717973309182,619.05792109,0.000165,7]
[328908632,1717973432752,-945.74878612,0.00015,2]
[328908634,1717973432762,-1911.02618015,0.00016498,2]
[328908636,1717973432772,-71.04400513,0.00016499,2]
[328908637,1717973432785,-1231.64147903,0.00016499,2]
[328908638,1717973432794,-286.64405799,0.000165,2]
[328908639,1717973432803,-1100.59931817,0.00016984,2]
[328908640,1717973432812,-166.666666,0.00016986,2]
[328908641,1717973432822,-575.9586368,0.00017267,2]
[328908642,1717973432832,-193.27998332,0.00017267,2]
[328908643,1717973432842,-42100.06295128,0.00017366,2]
[328908644,1717973432854,-24890.0,0.00017367,2]
[328908645,1717973432865,-451.7944376,0.00017402,2]
[328908646,1717973432876,-193.27998331,0.00018584,2]
[328908647,1717973432886,-938.60358095,0.000187,2]
[328908648,1717973432898,-545.53430015,0.00018876,2]
[328908649,1717973432911,-30.4243366,0.00018876,2]
[328908650,1717973432923,-327.52916522,0.000189,2]
[328908651,1717973432934,-176.64,0.00018951,3]
[328908652,1717973432944,-529.94,0.00018951,3]
[328908653,1717973432953,-464.05277615,0.00018959,2]
[328908654,1717973432963,-16955.2199696,0.00018961,2]
[328908671,1717973444072,-333.49093009,0.00018961,2]
[328908672,1717973444086,-761.07945367,0.00018961,2]
[328908673,1717973444148,-28582.06725235,0.00018961,2]
[328908674,1717973444158,-158.894375,0.00019178,2]
[328908675,1717973444168,-4236.94913646,0.00019887,2]
[328908676,1717973444178,-193.27998331,0.000199,2]
[328908677,1717973444188,-877.62926083,0.00019974,2]
[328908678,1717973444198,-190.05330554,0.00019975,2]
[328908679,1717973444208,-353.28,0.00019986,3]
[328908680,1717973444218,-1153.62901441,0.00019992,2]
[328908681,1717973444228,-156.13540886,0.00019992,2]
[328908682,1717973444238,-695.47179616,0.00019994,2]
[328908683,1717973444247,-11089.38713808,0.00019994,2]
[328908684,1717973444256,-217.18829622,0.00019994,2]
[328908685,1717973444266,-8847.50782748,0.00019995,2]
[328908686,1717973444276,-309.79014398,0.00019995,2]
[328908687,1717973444286,-2823.25066463,0.00019995,2]
[328908689,1717973444296,-241.82372492,0.00019995,2]
[328908690,1717973444307,-3282.59694393,0.00019996,7]
[328908691,1717973444316,-1912.11412767,0.00019996,7]
[328908692,1717973444326,-48029.28306831,0.00019996,2]
[328908693,1717973444337,-337.79689343,0.00019996,2]
[328908694,1717973444347,-166.51601448,0.00019996,2]
[328908695,1717973444357,-157.90899572,0.00019996,2]
[328908696,1717973444375,-215.45514594,0.00019996,2]
[328908697,1717973444388,-151.0,0.00019996,2]
[328908698,1717973444399,-151.0,0.00019996,2]
[328908699,1717973444410,-151.0,0.00019996,2]
[328908700,1717973444421,-151.0,0.00019996,2]
[328908701,1717973444432,-151.0,0.00019996,2]
[328908702,1717973444442,-151.0,0.00019996,2]
[328908703,1717973444453,-348.843029,0.00019996,2]
[328908704,1717973444463,-348.843029,0.00019996,2]
[328908705,1717973444474,-555.961279,0.00019996,2]
[328908706,1717973444484,-555.961279,0.00019996,2]
[328908707,1717973444495,-151.0,0.00019996,2]
[328908708,1717973444506,-151.0,0.00019996,2]
[328908709,1717973444517,-151.0,0.00019996,2]
[328908710,1717973444528,-266.758009,0.00019996,2]
[328908711,1717973444540,-266.758009,0.00019996,2]